fUSD/lending_fUSD_20251103
["ID","MTS","AMOUNT","RATE_DAILY","PERIOD"]
[392963118,1762183838564,-8262.19444844,0.00014897,2]
[392963119,1762183838596,-580.00315682,0.00014897,2]
[392963120,1762183838606,-4835.49684318,0.00014898,2]
[392963121,1762183838619,-2020.32516532,0.00014898,2]
[392963122,1762183838630,-1192.87303888,0.00014898,2]
[392963123,1762183838644,-1210.5,0.00014898,2]
[392963124,1762183838657,-455.92799996,0.00014898,2]
[392963125,1762183838671,-5982.89656642,0.00014898,2]
[392963126,1762183838682,-6855.8220085,0.00014899,2]
[392963127,1762183838694,-8842.19760526,0.00014899,2]
[392963128,1762183838704,-4111.91705096,0.000149,2]
[392963129,1762183838715,-171.70260928,0.000149,2]
[392963130,1762183838726,-6855.8220085,0.000149,2]
[392963131,1762183838737,-415.18629384,0.000149,2]
[392963132,1762183838749,-3570.10195425,0.000149,2]
[392963133,1762183838760,-188.6362177,0.000149,2]
[392963134,1762183838771,-8842.19760526,0.000149,2]
[392963135,1762183838782,-343.5309302,0.00014935,2]
[392963136,1762183838793,-231.17860089,0.00014939,2]
[392963137,1762183838804,-1200.0,0.00014972,2]
[392963138,1762183838815,-500.0,0.00014973,2]
[392963139,1762183838827,-619.433582,0.00014973,2]
[392963140,1762183838843,-500.0,0.00014973,2]
[392963141,1762183838856,-500.0,0.00014973,2]
[392963142,1762183838872,-500.0,0.00014973,2]
[392963143,1762183838883,-500.0,0.00014973,2]
[392963145,1762183838895,-500.0,0.00014973,2]
[392963147,1762183838906,-500.0,0.00014973,2]
[392963149,1762183838917,-500.0,0.00014973,2]
[392963151,1762183838929,-500.0,0.00014973,2]
[392963152,1762183838940,-526.17457653,0.00014973,2]
[392963154,1762183838951,-171.53148357,0.00014979,2]
[392963156,1762183838964,-88786.74478118,0.0001498,2]
[392963158,1762183838977,-4347.06265718,0.0001498,2]
[392963161,1762183838994,-55173.14000002,0.0001498,2]
[392963163,1762183839007,-23902.7297,0.0001498,2]
[392963165,1762183839020,-36500.0,0.0001498,2]
[392963168,1762183839033,-276990.0837161,0.0001498,2]
[392963170,1762183839044,-300.0,0.0001499,2]
[392963172,1762183839055,-1246.33234352,0.0001499,2]
[392963173,1762183839065,-1246.33234352,0.0001499,2]
[392963176,1762183839076,-1246.33234352,0.0001499,2]
[392963178,1762183839087,-666.0,0.00014999,2]
[392963180,1762183839097,-9522621.06073639,0.00015,2]
[392963181,1762183839107,-3644493.14315195,0.00015,2]
[392963184,1762183839120,-1601.4999,0.00015,2]
[392963186,1762183839134,-26540.612,0.00015,2]
[392963303,1762183840404,-1106.75756469,0.00015,2]
[392963306,1762183840417,-59426.7449301,0.00015,2]
[392963309,1762183840430,-864.53379185,0.00015,2]
[392963314,1762183840473,-2088.38516014,0.00015,2]
[392963316,1762183840486,-1129977.62924645,0.00015,2]
[392963323,1762183840550,-3951.37513193,0.00015,2]
[392963325,1762183840564,-2126.0,0.00015,2]
[392963327,1762183840576,-739.97,0.00015,2]
[392963330,1762183840589,-1417.9364251,0.00015,2]
[392963333,1762183840616,-230.80867062,0.00015,2]
[392963338,1762183840653,-9217.3016097,0.00015,2]
[392963340,1762183840703,-10650.0,0.00015,2]
[392963341,1762183840750,-534.55,0.00015,2]
[392963343,1762183840762,-1824.62500001,0.00015,2]
[392963359,1762183840914,-273800.37235969,0.00015,2]
[392963602,1762183843445,-466.73,0.000149,2]
[392963605,1762183843472,-285.14730416,0.000149,2]
[392963611,1762183843662,-39.77981619,0.000149,2]
[392963612,1762183843672,-493.99418627,0.00015,2]
[392963613,1762183843700,-36500.0,0.00015,2]
[392963614,1762183843712,-24268.77589286,0.00015,2]
[392963615,1762183843724,-69797.69796325,0.00015,2]
[392963616,1762183843735,-295.843548,0.00015,2]
[392963617,1762183843747,-3659.0,0.00015,2]
[392963624,1762183843935,-53408.0,0.00015,2]
[392963626,1762183843946,-7958.73995809,0.00015,2]
[392963667,1762183846542,-2808.05867669,0.00015,2]
[392963765,1762184020107,-3961207.33278396,0.00015,2]
[392963766,1762184020117,-700.1531496,0.00015,2]
[392963767,1762184020127,-3466.01531735,0.00015,2]
[392963768,1762184020136,-1000.0,0.00015318,2]
[392963769,1762184020145,-1000.0,0.00015521,2]
[392963770,1762184020155,-393.54426855,0.00015521,2]
[392963771,1762184020165,-1000.0,0.00015521,2]
[392963772,1762184020180,-504.98640872,0.00015521,2]
[392963773,1762184020190,-500.0,0.00015521,2]
[392963774,1762184020457,-300.0,0.00015621,2]
[392963775,1762184020471,-195.0,0.00015621,2]
[392963776,1762184020481,-210.34,0.00015931,2]
[392963777,1762184020491,-331.02,0.00015931,2]
[392963778,1762184020502,-255.0,0.00016021,2]
[392963779,1762184020512,-1000.0,0.00016068,2]
[392963780,1762184020522,-61525.17600817,0.000162,5]
[392963781,1762184020533,-195.0,0.00016378,2]
[392963782,1762184020542,-187.93878104,0.00016378,2]
[392963783,1762184020552,-1680.0,0.00016378,2]
[392963784,1762184020563,-250.0,0.00016379,2]
[392963785,1762184020573,-283.5154461,0.0001639,2]
[392963786,1762184020583,-300.0,0.0001639,2]
[392963787,1762184020593,-2500.0,0.0001639,2]
[392963788,1762184020602,-2510.55357343,0.0001639,11]
[392963789,1762184020613,-552.22068835,0.00016438,2]
[392963790,1762184020623,-500.0,0.00016438,2]
[392963791,1762184020632,-193.0,0.00016478,2]
[392963792,1762184020642,-195.0,0.00016478,2]
[392963793,1762184020651,-300.0,0.00016478,2]
[392963794,1762184020660,-459.54459116,0.00016714,2]
[392963795,1762184020673,-153.2640301,0.00017122,7]
[392963796,1762184020683,-1000.0,0.00017233,2]
[392963797,1762184020694,-433.0,0.00017241,2]
[392963798,1762184020704,-500.0,0.00017445,2]
[392963799,1762184020713,-160.0,0.00017517,2]
[392963800,1762184020723,-477.5520043,0.0001752,2]
[392963801,1762184020732,-837.91944318,0.00017534,2]
[392963802,1762184020742,-1905.97,0.00017867,2]
[392963803,1762184020752,-883.62180574,0.00018,2]
[392963804,1762184020762,-82567.7968673,0.00018,2]
[392963805,1762184020772,-2351.0,0.00018016,2]
[392963806,1762184020783,-3636.44,0.00018035,2]
[392963807,1762184020793,-1762.30589658,0.000181,2]
[392963808,1762184020803,-736.0,0.00018552,2]
[392963809,1762184020812,-20290.29050943,0.00018557,2]
[392963810,1762184020823,-163.23764023,0.00018783,2]
[392963811,1762184020832,-169.65,0.000188,2]
[392963812,1762184020843,-1728.65575598,0.00019,2]
[392963813,1762184020853,-1728.65575598,0.00019,2]
[392963814,1762184020863,-800.17720091,0.00019,3]
[392963815,1762184020872,-1000.0,0.00019148,2]
[392963816,1762184020882,-500.0,0.00019178,2]
[392963817,1762184020892,-500.0,0.00019178,2]
[392963818,1762184020901,-500.0,0.00019178,2]
[392963819,1762184020911,-500.0,0.00019178,2]
[392963820,1762184020924,-500.0,0.00019178,2]
[392963821,1762184020936,-428.60152552,0.00019178,2]
[392963822,1762184020946,-225.91405869,0.00019702,2]
[392963823,1762184020956,-250.0,0.00019718,2]
[392963824,1762184020965,-188.63621768,0.00019816,2]
[392963825,1762184020975,-3292.0,0.00019817,2]
[392963826,1762184020985,-415.18629382,0.00019866,2]
[392963827,1762184020995,-617.0,0.00019951,2]
[392963828,1762184021004,-760.3,0.00019953,2]
[392963829,1762184021014,-25685.25848978,0.0002,5]
[392963830,1762184021023,-506.4901908,0.0002,14]
[392963831,1762184021033,-1000.0,0.0002,7]
[392963832,1762184021042,-1000.0,0.00020187,2]
[392963833,1762184021052,-942.0,0.00020247,2]
[392963834,1762184021062,-500.0,0.00020253,2]
[392963835,1762184021072,-942.0,0.00020276,2]
[392963836,1762184021081,-942.0,0.00020407,2]
[392963837,1762184021091,-168.0,0.00020412,2]
[392963838,1762184021102,-1402.39,0.00020477,2]
[392963839,1762184021112,-942.0,0.0002049,2]
[392963840,1762184021122,-942.0,0.00020611,2]
[392963841,1762184021131,-168.0,0.0002074,2]
[392963842,1762184021141,-819.0,0.00020751,2]
[392963843,1762184021151,-821.0,0.00020849,2]
[392963844,1762184021160,-607.0,0.00020849,2]
[392963845,1762184021172,-2140.0,0.00020849,2]
[392963846,1762184021181,-4484.056,0.00020849,2]
[392963847,1762184021191,-573.0,0.00020849,2]
[392963848,1762184021201,-559.0,0.00020849,2]
[392963849,1762184021211,-1446.365,0.00020849,2]
[392963850,1762184021221,-19431.6266,0.00020926,2]
[392963851,1762184021230,-1000.0,0.00020926,2]
[392963852,1762184021240,-248.71531821,0.00020928,2]
[392963853,1762184021249,-168.0,0.00020928,2]
[392963854,1762184021258,-166.66,0.00020949,2]
[392963855,1762184021270,-942.0,0.00020952,2]
[392963856,1762184021281,-254.06,0.00021013,2]
[392963857,1762184021292,-151.0,0.00021013,2]
[392963858,1762184021303,-151.0,0.00021013,2]
[392963859,1762184021316,-151.0,0.00021013,2]
[392963860,1762184021327,-151.0,0.00021013,2]
[392963861,1762184021338,-151.0,0.00021013,2]
[392963862,1762184021348,-151.0,0.00021013,2]
[392963863,1762184021358,-151.0,0.00021013,2]
[392963864,1762184021368,-151.0,0.00021013,2]
[392963865,1762184021378,-151.0,0.00021013,2]
[392963866,1762184021388,-151.0,0.00021013,2]
[392963867,1762184021397,-151.0,0.00021013,2]
[392963868,1762184021407,-151.0,0.00021013,2]
[392963869,1762184021423,-151.0,0.00021013,2]
[392963870,1762184021432,-151.0,0.00021013,2]
[392963871,1762184021444,-151.0,0.00021013,2]
[392963872,1762184021455,-285.02172628,0.00021013,2]
[392963873,1762184021466,-942.0,0.00021022,2]
[392963874,1762184021476,-529.90780693,0.00021025,2]
[392963875,1762184021486,-500.0,0.00021025,2]
[392963876,1762184021496,-500.0,0.00021025,2]
[392963877,1762184021506,-150.0,0.00021025,2]
[392963878,1762184021516,-150.0,0.00021025,2]
[392963879,1762184021527,-150.0,0.00021025,2]
[392963880,1762184021536,-204.82792549,0.00021025,2]
[392963881,1762184021546,-500.0,0.00021025,2]
[392963882,1762184021556,-500.0,0.00021025,2]
[392963883,1762184021565,-300.0,0.00021025,2]
[392963884,1762184021575,-300.0,0.00021025,2]
[392963885,1762184021584,-666.0,0.00021025,2]
[392963886,1762184021594,-420000.0,0.00021026,2]
[392963887,1762184021604,-1835.2365,0.00021041,2]
[392963888,1762184021615,-942.0,0.00021043,2]
[392963889,1762184021624,-942.0,0.00021055,2]
[392963890,1762184021635,-1000.0,0.00021062,2]
[392963891,1762184021644,-500.0,0.00021073,2]
[392963892,1762184021654,-500.0,0.00021073,2]
[392963893,1762184021663,-500.0,0.00021073,2]
[392963894,1762184021676,-500.0,0.00021073,2]
[392963895,1762184021685,-500.0,0.00021073,2]
[392963896,1762184021695,-500.0,0.00021073,2]
[392963897,1762184021706,-500.0,0.00021073,2]
[392963898,1762184021716,-500.0,0.00021073,2]
[392963899,1762184021726,-524.5890351,0.00021073,2]
[392963900,1762184021736,-500.0,0.00021073,2]
[392963901,1762184021746,-500.0,0.00021073,2]
[392963902,1762184021755,-942.0,0.00021155,2]
[392963903,1762184021764,-500.0,0.00021162,2]
[392963904,1762184021774,-500.0,0.00021162,2]
[392963905,1762184021783,-254.06,0.00021287,2]
[392963906,1762184021793,-500.0,0.00021299,2]
[392963907,1762184021803,-500.0,0.00021299,2]
[392963908,1762184021812,-168.0,0.00021385,2]
[392963909,1762184021822,-166.66,0.0002139,2]
[392963910,1762184021832,-168.0,0.00021406,2]
[392963911,1762184021841,-942.0,0.00021418,2]
[392963912,1762184021850,-500.0,0.00021436,2]
[392963913,1762184021860,-500.0,0.00021436,2]
[392963914,1762184021869,-3082.0,0.00021501,2]
[392963915,1762184021880,-942.0,0.00021503,2]
[392963916,1762184021890,-942.0,0.00021517,2]
[392963917,1762184021899,-942.0,0.00021549,2]
[392963918,1762184021909,-254.06,0.00021561,2]
[392963919,1762184021922,-942.0,0.00021572,2]
[392963920,1762184021931,-500.0,0.00021573,2]
[392963921,1762184021941,-500.0,0.00021573,2]
[392963922,1762184021950,-500.0,0.00021621,2]
[392963923,1762184021959,-1000.0,0.00021621,2]
[392963924,1762184021969,-1000.0,0.00021621,2]
[392963925,1762184021979,-1000.0,0.00021621,2]
[392963926,1762184021988,-349.3377827,0.00021621,2]
[392963927,1762184021998,-513.7537043,0.00021621,2]
[392963928,1762184022007,-500.0,0.00021621,2]
[392963929,1762184022016,-500.0,0.00021621,2]
[392963930,1762184022026,-942.0,0.00021657,2]
[392963931,1762184022035,-390.64735062,0.0002171,2]
[392963932,1762184022045,-500.0,0.0002171,2]
[392963933,1762184022054,-942.0,0.00021716,2]
[392963934,1762184022065,-4609.0,0.00021799,2]
[392963935,1762184022074,-166.66,0.00021831,2]
[392963936,1762184022083,-254.06,0.00021835,2]
[392963937,1762184022093,-624.19437149,0.00021847,2]
[392963938,1762184022103,-942.0,0.0002189,2]
[392963939,1762184022112,-500.0,0.00021891,2]
[392963940,1762184022121,-500.0,0.00021918,4]
[392963941,1762184022130,-500.0,0.00021918,4]
[392963942,1762184022140,-500.0,0.00021918,4]
[392963943,1762184022150,-500.0,0.00021918,4]
[392963944,1762184022159,-500.0,0.00021918,4]
[392963945,1762184022168,-500.0,0.00021918,4]
[392963946,1762184022182,-500.0,0.00021918,4]
[392963947,1762184022192,-500.0,0.00021918,4]
[392963948,1762184022202,-500.0,0.00021918,4]
[392963949,1762184022212,-500.0,0.00021918,4]
[392963950,1762184022222,-500.0,0.00021918,4]
[392963951,1762184022232,-500.0,0.00021918,4]
[392963952,1762184022241,-500.0,0.00021918,4]
[392963953,1762184022251,-500.0,0.00021918,4]
[392963954,1762184022260,-500.0,0.00021918,4]
[392963955,1762184022270,-500.0,0.00021918,4]
[392963956,1762184022280,-274.38776277,0.00021918,2]
[392963957,1762184022289,-150.0,0.00021918,2]
[392963958,1762184022298,-150.0,0.00021918,2]
[392963959,1762184022308,-150.0,0.00021918,2]
[392963960,1762184022317,-150.0,0.00021918,2]
[392963961,1762184022326,-150.0,0.00021918,2]
[392963962,1762184022336,-150.0,0.00021918,2]
[392963963,1762184022347,-150.0,0.00021918,2]
[392963964,1762184022356,-200.4129963,0.00021918,2]
[392963965,1762184022366,-500.0,0.00021918,2]
[392963966,1762184022376,-500.0,0.00021918,2]
[392963967,1762184022386,-150.0,0.00021918,2]
[392963968,1762184022396,-150.0,0.00021918,2]
[392963969,1762184022407,-263.17194606,0.00021918,2]
[392963970,1762184022419,-150.0,0.00021918,2]
[392963971,1762184022433,-500.0,0.00021918,2]
[392963972,1762184022446,-150.0,0.00021918,2]
[392963973,1762184022456,-153.68323784,0.0002192,4]
[392963974,1762184022466,-153.68323784,0.0002192,4]
[392963975,1762184022475,-153.68323784,0.0002192,4]
[392963976,1762184022485,-153.68323784,0.0002192,4]
[392963977,1762184022495,-153.68323784,0.0002192,4]
[392963978,1762184022506,-153.68323784,0.0002192,4]
[392963979,1762184022518,-153.68323784,0.0002192,4]
[392963980,1762184022528,-153.68323784,0.0002192,4]
[392963981,1762184022539,-153.68323784,0.0002192,4]
[392963982,1762184022549,-153.68323784,0.0002192,4]
[392963983,1762184022560,-153.68323784,0.0002192,4]
[392963984,1762184022571,-153.68323784,0.0002192,4]
[392963985,1762184022581,-153.68323784,0.0002192,4]
[392963986,1762184022590,-153.68323784,0.0002192,4]
[392963987,1762184022599,-153.68323784,0.0002192,4]
[392963988,1762184022609,-153.68323784,0.0002192,4]
[392963989,1762184022618,-153.68323784,0.0002192,4]
[392963990,1762184022628,-153.68323784,0.0002192,4]
[392963991,1762184022637,-153.68,0.0002192,4]
[392963992,1762184022646,-340.66451054,0.0002192,4]
[392963993,1762184022656,-340.66451054,0.0002192,4]
[392963994,1762184022665,-340.66451054,0.0002192,4]
[392963995,1762184022681,-340.66451054,0.0002192,4]
[392963996,1762184022691,-340.66451054,0.0002192,4]
[392963997,1762184022700,-340.66451054,0.0002192,4]
[392963998,1762184022710,-340.66451054,0.0002192,4]
[392963999,1762184022719,-340.66451054,0.0002192,4]
[392964000,1762184022729,-340.66451054,0.0002192,4]
[392964001,1762184022739,-340.66451054,0.0002192,4]
[392964002,1762184022749,-340.66451054,0.0002192,4]
[392964003,1762184022759,-340.66451054,0.0002192,4]
[392964004,1762184022768,-340.66451054,0.0002192,4]
[392964005,1762184022778,-340.66451054,0.0002192,4]
[392964006,1762184022788,-340.66451054,0.0002192,4]
[392964007,1762184022799,-340.66451054,0.0002192,4]
[392964008,1762184022809,-340.66451054,0.0002192,4]
[392964009,1762184022819,-340.66451054,0.0002192,4]
[392964010,1762184022828,-340.66451054,0.0002192,4]
[392964011,1762184022838,-340.66,0.0002192,4]
[392964012,1762184022848,-238.99551242,0.0002192,4]
[392964013,1762184022858,-238.99551242,0.0002192,4]
[392964014,1762184022868,-238.99551242,0.0002192,4]
[392964015,1762184022878,-238.99551242,0.0002192,4]
[392964016,1762184022888,-238.99551242,0.0002192,4]
[392964017,1762184022898,-238.99551242,0.0002192,4]
[392964018,1762184022908,-238.99551242,0.0002192,4]
[392964019,1762184022918,-238.99551242,0.0002192,4]
[392964020,1762184023062,-238.99551242,0.0002192,4]
[392964021,1762184023074,-238.99551242,0.0002192,4]
[392964022,1762184023085,-238.99551242,0.0002192,4]
[392964023,1762184023095,-238.99551242,0.0002192,4]
[392964024,1762184023105,-238.99551242,0.0002192,4]
[392964025,1762184023115,-238.99551242,0.0002192,4]
[392964026,1762184023124,-238.99551242,0.0002192,4]
[392964027,1762184023134,-238.99551242,0.0002192,4]
[392964028,1762184023143,-238.99551242,0.0002192,4]
[392964029,1762184023152,-238.99551242,0.0002192,4]
[392964030,1762184023162,-238.99551242,0.0002192,4]
[392964031,1762184023174,-238.99,0.0002192,4]
[392964032,1762184023183,-557.65619565,0.0002192,4]
[392964033,1762184023193,-557.65619565,0.0002192,4]
[392964034,1762184023203,-557.65619565,0.0002192,4]
[392964035,1762184023213,-557.65619565,0.0002192,4]
[392964036,1762184023223,-557.65619565,0.0002192,4]
[392964037,1762184023233,-557.65619565,0.0002192,4]
[392964038,1762184023243,-557.65619565,0.0002192,4]
[392964039,1762184023252,-557.65619565,0.0002192,4]
[392964040,1762184023262,-557.65619565,0.0002192,4]
[392964041,1762184023271,-557.65619565,0.0002192,4]
[392964042,1762184023281,-557.65619565,0.0002192,4]
[392964043,1762184023290,-557.65619565,0.0002192,4]
[392964044,1762184023299,-557.65619565,0.0002192,4]
[392964045,1762184023308,-557.65619565,0.0002192,4]
[392964046,1762184023318,-557.65619565,0.0002192,4]
[392964047,1762184023327,-557.65619565,0.0002192,4]
[392964048,1762184023336,-557.65619565,0.0002192,4]
[392964049,1762184023346,-557.65619565,0.0002192,4]
[392964050,1762184023355,-557.65619565,0.0002192,4]
[392964051,1762184023364,-557.65,0.0002192,4]
[392964052,1762184023374,-246287.47793185,0.00022,4]
[392964053,1762184023384,-7887.58,0.00022,7]
[392964054,1762184023394,-150.0,0.00022055,2]
[392964055,1762184023404,-150.0,0.00022055,2]
[392964056,1762184023416,-500.0,0.00022055,2]
[392964057,1762184023432,-435.66714502,0.00022055,2]
[392964058,1762184023442,-150.0,0.00022055,2]
[392964059,1762184023452,-577.50752535,0.00022055,2]
[392964060,1762184023462,-150.0,0.00022055,2]
[392964061,1762184023472,-150.34146439,0.00022055,2]
[392964062,1762184023481,-150.0,0.00022055,2]
[392964063,1762184023491,-150.0,0.00022055,2]
[392964064,1762184023501,-624.0,0.00022055,2]
[392964065,1762184023512,-150.0,0.00022055,2]
[392964066,1762184023521,-500.0,0.00022055,2]
[392964067,1762184023531,-779.0,0.00022055,2]
[392964068,1762184023541,-942.0,0.00022098,2]
[392964069,1762184023550,-254.09,0.00022109,2]
[392964070,1762184023560,-151.0,0.00022168,7]
[392964071,1762184023569,-151.0,0.00022168,7]
[392964072,1762184023579,-507.99392349,0.00022168,2]
[392964073,1762184023588,-1576.33620328,0.00022168,2]
[392964074,1762184023598,-250.0,0.00022192,2]
[392964075,1762184023607,-204.65027273,0.00022192,2]
[392964076,1762184023616,-500.0,0.00022192,2]
[392964077,1762184023626,-150.0,0.00022192,2]
[392964078,1762184023635,-150.0,0.00022192,2]
[392964079,1762184023644,-624.0,0.00022192,2]
[392964080,1762184023654,-150.0,0.00022192,2]
[392964081,1762184023663,-500.0,0.00022192,2]
[392964082,1762184023679,-779.0,0.00022192,2]
[392964083,1762184023688,-942.0,0.00022211,2]
[392964084,1762184023698,-166.66,0.00022272,30]
[392964085,1762184023708,-257.91778498,0.00022297,2]
[392964086,1762184023717,-500.0,0.00022329,2]
[392964087,1762184023727,-266.09991313,0.00022329,2]
[392964088,1762184023737,-150.0,0.00022329,2]
[392964089,1762184023746,-624.0,0.00022329,2]
[392964090,1762184023755,-150.0,0.00022329,2]
[392964091,1762184023764,-500.0,0.00022329,2]
[392964092,1762184023774,-779.0,0.00022329,2]
[392964093,1762184023784,-150.0,0.00022395,2]
[392964094,1762184023794,-458.16988647,0.00022439,2]
[392964095,1762184023804,-500.0,0.00022466,2]
[392964096,1762184023813,-624.0,0.00022466,2]
[392964097,1762184023823,-163.28695476,0.00022466,2]
[392964098,1762184023832,-500.0,0.00022466,2]
[392964099,1762184023842,-779.0,0.00022466,2]
[392964100,1762184023852,-300.0,0.00022561,2]
[392964101,1762184023861,-271.75720946,0.00022561,2]
[392964102,1762184023871,-151.0,0.00022562,7]
[392964103,1762184023881,-151.0,0.00022562,7]
[392964104,1762184023890,-997.083144,0.00022562,7]
[392964105,1762184023899,-151.0,0.00022562,7]
[392964106,1762184023909,-997.083144,0.00022562,7]
[392964107,1762184023925,-190.904624,0.00022562,7]
[392964108,1762184023935,-997.083144,0.00022562,7]
[392964109,1762184023945,-997.083144,0.00022562,7]
[392964110,1762184023954,-151.0,0.00022562,7]
[392964111,1762184023964,-215.16726,0.00022562,7]
[392964112,1762184023973,-215.16726,0.00022562,7]
[392964113,1762184023983,-215.16726,0.00022562,7]
[392964114,1762184023992,-215.16726,0.00022562,7]
[392964115,1762184024002,-151.0,0.00022562,7]
[392964116,1762184024012,-151.0,0.00022562,7]
[392964117,1762184024022,-160.559873,0.00022562,7]
[392964118,1762184024032,-151.0,0.00022562,7]
[392964119,1762184024042,-151.0,0.00022562,7]
[392964120,1762184024052,-151.0,0.00022562,7]
[392964121,1762184024061,-151.0,0.00022562,7]
[392964122,1762184024071,-151.0,0.00022562,7]
[392964123,1762184024081,-151.0,0.00022562,7]
[392964124,1762184024091,-151.0,0.00022562,7]
[392964125,1762184024101,-151.0,0.00022562,7]
[392964126,1762184024110,-151.0,0.00022562,7]
[392964127,1762184024120,-151.0,0.00022562,7]
[392964128,1762184024130,-151.0,0.00022562,7]
[392964129,1762184024139,-151.0,0.00022562,7]
[392964130,1762184024148,-151.0,0.00022562,7]
[392964131,1762184024158,-151.0,0.00022562,7]
[392964132,1762184024167,-151.0,0.00022562,7]
[392964133,1762184024180,-241.514975,0.00022562,7]
[392964134,1762184024190,-4926.27,0.00022562,2]
[392964135,1762184024200,-344.47,0.00022562,2]
[392964136,1762184024209,-9999.99,0.00022562,2]
[392964137,1762184024218,-1123.6,0.00022562,2]
[392964138,1762184024227,-293.91,0.00022562,2]
[392964139,1762184024237,-9999.99,0.00022562,2]
[392964140,1762184024246,-999.99,0.00022562,2]
[392964141,1762184024256,-9999.99,0.00022562,2]
[392964142,1762184024265,-55348.68,0.00022562,2]
[392964143,1762184024275,-364.57,0.00022562,2]
[392964144,1762184024284,-3652.29,0.00022562,2]
[392964145,1762184024294,-508.36,0.00022562,2]
[392964146,1762184024303,-1584.53,0.00022562,2]
[392964147,1762184024312,-499.99,0.00022562,2]
[392964148,1762184024321,-67224.63,0.00022562,2]
[392964149,1762184024330,-150.99,0.00022562,2]
[392964150,1762184024339,-150.99,0.00022562,2]
[392964151,1762184024349,-500.0,0.00022573,2]
[392964152,1762184024359,-440.46876719,0.00022573,2]
[392964153,1762184024368,-150.0,0.00022573,2]
[392964154,1762184024379,-500.0,0.00022603,2]
[392964155,1762184024388,-624.0,0.00022603,2]
[392964156,1762184024398,-500.0,0.00022603,2]
[392964157,1762184024408,-779.0,0.00022603,2]
[392964158,1762184024424,-203.0,0.00022614,2]
[392964159,1762184024434,-166.66,0.00022713,30]
[392964160,1762184024448,-500.0,0.0002274,2]
[392964161,1762184024458,-624.0,0.0002274,2]
[392964162,1762184024467,-500.0,0.0002274,2]
[392964163,1762184024477,-779.0,0.0002274,2]
[392964164,1762184024486,-256.0,0.00022863,2]
[392964165,1762184024496,-154.31092621,0.00022877,2]
[392964166,1762184024506,-624.0,0.00022877,2]
[392964167,1762184024515,-220.63293975,0.00022877,2]
[392964168,1762184024525,-779.0,0.00022877,2]
[392964169,1762184024535,-1000.0,0.00022977,2]
[392964170,1762184024544,-624.0,0.00023014,2]
[392964171,1762184024554,-779.0,0.00023014,2]
[392964172,1762184024563,-500.0,0.00023061,2]
[392964173,1762184024573,-758.43650264,0.00023121,2]
[392964174,1762184024582,-351.33673282,0.00023121,2]
[392964175,1762184024592,-624.0,0.00023151,2]
[392964176,1762184024601,-779.0,0.00023151,2]
[392964177,1762184024611,-166.66,0.00023154,30]
[392964178,1762184024620,-624.0,0.00023288,2]
[392964179,1762184024629,-779.0,0.00023288,2]
[392964180,1762184024637,-1000.0,0.00023333,7]
[392964181,1762184024647,-500.0,0.00023367,2]
[392964182,1762184024657,-500.0,0.00023367,2]
[392964183,1762184024667,-7887.58,0.000234,7]
[392964184,1762184024683,-624.0,0.00023425,2]
[392964185,1762184024693,-779.0,0.00023425,2]
[392964186,1762184024702,-624.0,0.00023562,2]
[392964187,1762184024712,-779.0,0.00023562,2]
[392964188,1762184024721,-267.46074303,0.00023666,2]
[392964189,1762184024731,-624.0,0.00023699,2]
[392964190,1762184024741,-779.0,0.00023699,2]